[Event "Early-Titled-Tuesday-Blitz-April-02-2024"]
[Site "Chess.com"]
[Date "2024.04.02"]
[Round "10"]
[White "Lukianoo"]
[Black "jcibarra"]
[Result "0-1"]
[WhiteElo "2831"]
[BlackElo "2982"]
[TimeControl "180+1"]
[EndTime "9:53:36 PDT"]
[Termination "jcibarra won by resignation"]

1. e4 {[%clk 0:03:00.9]} 1... c5 {[%clk 0:03:00.6]} 2. Nf3 {[%clk 0:03:00.1]}
2... e6 {[%clk 0:03:00.9]} 3. c3 {[%clk 0:03:00.2]} 3... Nf6 {[%clk 0:03:00.7]}
4. e5 {[%clk 0:03:00.5]} 4... Nd5 {[%clk 0:03:01.4]} 5. d4 {[%clk 0:03:01.2]}
5... cxd4 {[%clk 0:03:02.2]} 6. cxd4 {[%clk 0:03:02.1]} 6... d6 {[%clk
0:03:02.7]} 7. Bc4 {[%clk 0:03:02.4]} 7... Be7 {[%clk 0:03:02.6]} 8. O-O {[%clk
0:03:02.2]} 8... O-O {[%clk 0:03:03.1]} 9. Qe2 {[%clk 0:03:02.7]} 9... b6 {[%clk
0:03:00.4]} 10. Rd1 {[%clk 0:02:58.7]} 10... Bb7 {[%clk 0:03:00.6]} 11. Bxd5
{[%clk 0:02:53.8]} 11... Bxd5 {[%clk 0:02:55.7]} 12. Nc3 {[%clk 0:02:54.3]}
12... Bxf3 {[%clk 0:02:55.3]} 13. Qxf3 {[%clk 0:02:54.3]} 13... d5 {[%clk
0:02:55.8]} 14. Be3 {[%clk 0:02:49.2]} 14... Nc6 {[%clk 0:02:55.7]} 15. Qe2
{[%clk 0:02:45.8]} 15... Rc8 {[%clk 0:02:55.1]} 16. Rac1 {[%clk 0:02:43.2]}
16... Na5 {[%clk 0:02:50.9]} 17. Qa6 {[%clk 0:02:29.9]} 17... Nc4 {[%clk
0:02:42.5]} 18. Nb5 {[%clk 0:02:02.9]} 18... Nxb2 {[%clk 0:02:30.4]} 19. Rf1
{[%clk 0:01:57]} 19... Nc4 {[%clk 0:02:25.4]} 20. Nxa7 {[%clk 0:01:33.5]} 20...
Ra8 {[%clk 0:02:16.6]} 21. Qb7 {[%clk 0:01:31]} 21... Rb8 {[%clk 0:01:48.3]} 22.
Qc6 {[%clk 0:01:19.7]} 22... Ra8 {[%clk 0:01:48.3]} 23. Qb7 {[%clk 0:01:17.7]}
23... Qb8 {[%clk 0:01:39.5]} 24. Qxe7 {[%clk 0:01:11]} 24... Rxa7 {[%clk
0:01:39.2]} 25. Rc2 {[%clk 0:01:07.8]} 25... Rxe7 {[%clk 0:01:32.9]} 0-1

[Event "Early-Titled-Tuesday-Blitz-April-02-2024"]
[Site "Chess.com"]
[Date "2024.04.02"]
[Round "10"]
[White "Nf3c5"]
[Black "ragnaroek66"]
[Result "1-0"]
[WhiteElo "2613"]
[BlackElo "2511"]
[TimeControl "180+1"]
[EndTime "9:53:50 PDT"]
[Termination "Nf3c5 won on time"]

1. e4 {[%clk 0:02:57.8]} 1... c5 {[%clk 0:02:59.6]} 2. Nf3 {[%clk 0:02:58.1]}
2... Nc6 {[%clk 0:02:59.7]} 3. Nc3 {[%clk 0:02:57.8]} 3... Nf6 {[%clk
0:02:50.4]} 4. Bb5 {[%clk 0:02:56.7]} 4... Qc7 {[%clk 0:02:44.4]} 5. O-O {[%clk
0:02:50.5]} 5... Nd4 {[%clk 0:02:44.3]} 6. Re1 {[%clk 0:02:26.9]} 6... Ng4
{[%clk 0:02:25.4]} 7. h3 {[%clk 0:02:14.2]} 7... Nxf3+ {[%clk 0:02:10.7]} 8.
Qxf3 {[%clk 0:02:13.6]} 8... Qh2+ {[%clk 0:02:08]} 9. Kf1 {[%clk 0:02:14]} 9...
Ne5 {[%clk 0:02:06.7]} 10. Qh5 {[%clk 0:01:57.1]} 10... g6 {[%clk 0:01:57.6]}
11. Qg5 {[%clk 0:01:45.3]} 1-0

[Event "Early-Titled-Tuesday-Blitz-April-02-2024"]
[Site "Chess.com"]
[Date "2024.04.02"]
[Round "10"]
[White "Manukyan_Artak"]
[Black "sokidze"]
[Result "0-1"]
[WhiteElo "2574"]
[BlackElo "2795"]
[TimeControl "180+1"]
[EndTime "9:54:05 PDT"]
[Termination "sokidze won by resignation"]

1. e4 {[%clk 0:02:57.4]} 1... e5 {[%clk 0:03:00.5]} 2. Nf3 {[%clk 0:02:56.2]}
2... Nf6 {[%clk 0:03:01.2]} 3. Nxe5 {[%clk 0:02:55.8]} 3... d6 {[%clk
0:03:01.8]} 4. Nf3 {[%clk 0:02:56.2]} 4... Nxe4 {[%clk 0:03:02.5]} 5. Nc3 {[%clk
0:02:56.9]} 5... Nxc3 {[%clk 0:03:02.7]} 6. dxc3 {[%clk 0:02:57.8]} 6... Be7
{[%clk 0:03:03.2]} 7. Bd3 {[%clk 0:02:53.8]} 7... O-O {[%clk 0:03:03.1]} 8. Be3
{[%clk 0:02:49.1]} 8... Nd7 {[%clk 0:03:01.1]} 9. Qd2 {[%clk 0:02:49.4]} 9...
Nf6 {[%clk 0:02:59.8]} 10. O-O-O {[%clk 0:02:49.1]} 10... Re8 {[%clk 0:02:59.9]}
11. Kb1 {[%clk 0:02:45.6]} 11... d5 {[%clk 0:02:56.6]} 12. h3 {[%clk 0:02:41.1]}
12... c5 {[%clk 0:02:32.1]} 13. Rhe1 {[%clk 0:02:32.6]} 13... c4 {[%clk
0:02:23.6]} 14. Bf1 {[%clk 0:02:31.6]} 14... Ne4 {[%clk 0:02:23.7]} 15. Qc1
{[%clk 0:02:31.6]} 15... Qa5 {[%clk 0:02:14.7]} 16. Nd2 {[%clk 0:02:25]} 16...
Nxc3+ {[%clk 0:01:39.1]} 17. bxc3 {[%clk 0:02:25.9]} 17... Ba3 {[%clk
0:01:39.7]} 18. Nxc4 {[%clk 0:01:58.2]} 18... dxc4 {[%clk 0:01:36.1]} 19. Rd5
{[%clk 0:01:56.9]} 19... Qxd5 {[%clk 0:01:12.9]} 20. Qxa3 {[%clk 0:01:55.1]}
20... Bf5 {[%clk 0:01:13]} 21. Rc1 {[%clk 0:01:44.9]} 21... b6 {[%clk
0:01:09.8]} 22. Qb4 {[%clk 0:01:42.5]} 22... Rac8 {[%clk 0:01:08.4]} 23. a4
{[%clk 0:01:42.5]} 23... a5 {[%clk 0:01:07.6]} 24. Qb5 {[%clk 0:01:39.4]} 24...
Qxb5+ {[%clk 0:00:58.5]} 25. axb5 {[%clk 0:01:40.3]} 25... Re5 {[%clk
0:00:59.2]} 26. Ka2 {[%clk 0:01:35.2]} 26... Rxb5 {[%clk 0:00:59.3]} 27. Rb1
{[%clk 0:01:35.4]} 27... Rxb1 {[%clk 0:00:58.7]} 28. Kxb1 {[%clk 0:01:36.3]}
28... h6 {[%clk 0:00:56.7]} 29. Ka2 {[%clk 0:01:27.7]} 29... b5 {[%clk
0:00:53.6]} 30. Bb6 {[%clk 0:01:27.5]} 30... Bxc2 {[%clk 0:00:53.3]} 0-1

[Event "Early-Titled-Tuesday-Blitz-April-02-2024"]
[Site "Chess.com"]
[Date "2024.04.02"]
[Round "10"]
[White "FREDERICKtheMATE"]
[Black "Tonychess32"]
[Result "1-0"]
[WhiteElo "2687"]
[BlackElo "2550"]
[TimeControl "180+1"]
[EndTime "9:54:30 PDT"]
[Termination "FREDERICKtheMATE won by resignation"]

1. d4 {[%clk 0:03:00.9]} 1... b6 {[%clk 0:02:59.4]} 2. e4 {[%clk 0:03:00.4]}
2... Bb7 {[%clk 0:02:59.7]} 3. Bd3 {[%clk 0:03:00.8]} 3... e6 {[%clk 0:03:00.2]}
4. Nf3 {[%clk 0:03:00.6]} 4... d6 {[%clk 0:02:59.5]} 5. O-O {[%clk 0:02:59.9]}
5... Nd7 {[%clk 0:02:59.7]} 6. c3 {[%clk 0:02:58.7]} 6... e5 {[%clk 0:02:59.8]}
7. a4 {[%clk 0:02:57.3]} 7... a5 {[%clk 0:02:59.2]} 8. Re1 {[%clk 0:02:56.8]}
8... Ngf6 {[%clk 0:02:59.4]} 9. h3 {[%clk 0:02:56.9]} 9... Be7 {[%clk
0:02:59.8]} 10. Na3 {[%clk 0:02:55.9]} 10... O-O {[%clk 0:02:59.9]} 11. d5
{[%clk 0:02:53.9]} 11... Nc5 {[%clk 0:02:59.1]} 12. c4 {[%clk 0:02:51.5]} 12...
Nxd3 {[%clk 0:02:47]} 13. Qxd3 {[%clk 0:02:52]} 13... Nh5 {[%clk 0:02:42.1]} 14.
g4 {[%clk 0:02:47.9]} 14... Nf4 {[%clk 0:02:25.2]} 15. Bxf4 {[%clk 0:02:48.4]}
15... exf4 {[%clk 0:02:26]} 16. Nd4 {[%clk 0:02:47.9]} 16... Bf6 {[%clk
0:02:21.6]} 17. Nab5 {[%clk 0:02:48]} 17... g6 {[%clk 0:01:54.5]} 18. Kg2 {[%clk
0:02:45.9]} 18... Be5 {[%clk 0:01:49.7]} 19. Rab1 {[%clk 0:02:40.6]} 19... Rc8
{[%clk 0:01:37.3]} 20. Nc6 {[%clk 0:02:39.2]} 20... Bxc6 {[%clk 0:01:36.9]} 21.
dxc6 {[%clk 0:02:40.1]} 21... f5 {[%clk 0:01:30.4]} 22. Nd4 {[%clk 0:02:27.8]}
22... fxe4 {[%clk 0:01:22.5]} 23. Rxe4 {[%clk 0:02:23.3]} 23... Bxd4 {[%clk
0:01:11.6]} 24. Qxd4 {[%clk 0:02:21.9]} 24... Qh4 {[%clk 0:01:05.3]} 25. Rbe1
{[%clk 0:02:12.5]} 25... f3+ {[%clk 0:01:03.1]} 26. Kh2 {[%clk 0:02:10.7]} 26...
Qf6 {[%clk 0:00:38.4]} 27. Qxf6 {[%clk 0:02:06.1]} 27... Rxf6 {[%clk 0:00:38.4]}
28. Re8+ {[%clk 0:02:06.9]} 28... Rxe8 {[%clk 0:00:37.3]} 29. Rxe8+ {[%clk
0:02:07.8]} 29... Rf8 {[%clk 0:00:19.8]} 30. Rxf8+ {[%clk 0:02:07.4]} 30... Kxf8
{[%clk 0:00:20.7]} 31. Kg3 {[%clk 0:02:07.8]} 31... Ke7 {[%clk 0:00:20.4]} 32.
Kxf3 {[%clk 0:02:08.5]} 32... Ke6 {[%clk 0:00:17.5]} 33. Ke4 {[%clk 0:02:08.2]}
33... g5 {[%clk 0:00:17.8]} 34. b3 {[%clk 0:02:06.9]} 34... h6 {[%clk
0:00:16.4]} 35. f3 {[%clk 0:02:07.2]} 35... Kf6 {[%clk 0:00:14.9]} 36. f4 {[%clk
0:02:06.2]} 36... gxf4 {[%clk 0:00:14.2]} 37. Kxf4 {[%clk 0:02:06.2]} 37... Ke6
{[%clk 0:00:11]} 38. h4 {[%clk 0:02:06.5]} 38... Kf6 {[%clk 0:00:09.2]} 39. g5+
{[%clk 0:02:06.2]} 39... hxg5+ {[%clk 0:00:09.7]} 40. hxg5+ {[%clk 0:02:07.1]}
40... Kg6 {[%clk 0:00:10.2]} 41. Kg4 {[%clk 0:02:07.6]} 41... Kf7 {[%clk
0:00:10.3]} 42. Kf5 {[%clk 0:02:08]} 42... Kg7 {[%clk 0:00:10.7]} 43. Ke6 {[%clk
0:02:07.9]} 43... Kg6 {[%clk 0:00:11.1]} 44. Kd7 {[%clk 0:02:08.6]} 1-0

[Event "Early-Titled-Tuesday-Blitz-April-02-2024"]
[Site "Chess.com"]
[Date "2024.04.02"]
[Round "10"]
[White "Oleksandr_Bortnyk"]
[Black "GoltsevDmitry2000"]
[Result "1-0"]
[WhiteElo "3034"]
[BlackElo "2828"]
[TimeControl "180+1"]
[EndTime "9:54:39 PDT"]
[Termination "Oleksandr_Bortnyk won by resignation"]

1. e4 {[%clk 0:03:00.9]} 1... e6 {[%clk 0:03:00.1]} 2. Nf3 {[%clk 0:03:01.4]}
2... d5 {[%clk 0:03:00.3]} 3. e5 {[%clk 0:03:02.3]} 3... d4 {[%clk 0:02:59.9]}
4. Bd3 {[%clk 0:02:58.3]} 4... c5 {[%clk 0:03:00.4]} 5. O-O {[%clk 0:02:59.1]}
5... Nc6 {[%clk 0:03:00.9]} 6. Be4 {[%clk 0:02:59.6]} 6... Nge7 {[%clk
0:03:01.2]} 7. c3 {[%clk 0:02:59.2]} 7... Ng6 {[%clk 0:03:00.7]} 8. Bxc6+ {[%clk
0:02:54.2]} 8... bxc6 {[%clk 0:03:00.2]} 9. Qa4 {[%clk 0:02:54.9]} 9... Bd7
{[%clk 0:02:54.3]} 10. Na3 {[%clk 0:02:53.3]} 10... Qb6 {[%clk 0:02:29.9]} 11.
Re1 {[%clk 0:02:52]} 11... Be7 {[%clk 0:02:25]} 12. d3 {[%clk 0:02:50.5]} 12...
O-O {[%clk 0:02:20.4]} 13. Nc4 {[%clk 0:02:36]} 13... Qb5 {[%clk 0:02:17.8]} 14.
Qc2 {[%clk 0:02:36.1]} 14... Rab8 {[%clk 0:02:10]} 15. Bg5 {[%clk 0:02:28.5]}
15... Bxg5 {[%clk 0:02:09]} 16. Nxg5 {[%clk 0:02:29.4]} 16... h6 {[%clk
0:02:08]} 17. Ne4 {[%clk 0:02:27.8]} 17... Rfd8 {[%clk 0:01:58.3]} 18. a4 {[%clk
0:02:25.6]} 18... Qb7 {[%clk 0:01:50.8]} 19. Nxc5 {[%clk 0:02:25.4]} 19... Qc8
{[%clk 0:01:51.4]} 20. cxd4 {[%clk 0:02:25.7]} 20... Be8 {[%clk 0:01:51.3]} 21.
Nd6 {[%clk 0:02:25.7]} 21... Qc7 {[%clk 0:01:51.6]} 22. Na6 {[%clk 0:02:25.8]}
22... Qb6 {[%clk 0:01:48]} 23. Nxb8 {[%clk 0:02:25.4]} 23... Qxb8 {[%clk
0:01:48.9]} 24. g3 {[%clk 0:02:08.3]} 24... Ne7 {[%clk 0:01:45.3]} 25. Qc5
{[%clk 0:01:57.6]} 25... Nd5 {[%clk 0:01:43.3]} 26. b4 {[%clk 0:01:50]} 26...
Qxb4 {[%clk 0:01:40.3]} 27. Qxa7 {[%clk 0:01:46.2]} 27... Qd2 {[%clk 0:01:34.6]}
28. a5 {[%clk 0:01:40]} 28... Qxd3 {[%clk 0:01:30]} 29. a6 {[%clk 0:01:38.9]}
29... Qf3 {[%clk 0:01:26]} 30. Qc5 {[%clk 0:01:24.4]} 30... Rb8 {[%clk
0:01:21.2]} 31. Ra3 {[%clk 0:01:17.8]} 31... Qg4 {[%clk 0:01:17.1]} 32. a7
{[%clk 0:01:15.4]} 32... Ra8 {[%clk 0:01:06]} 33. Nxe8 {[%clk 0:01:15.7]} 33...
Nf4 {[%clk 0:01:05.7]} 34. Qxc6 {[%clk 0:01:15.2]} 34... Nh3+ {[%clk 0:01:01.8]}
35. Kg2 {[%clk 0:01:13.5]} 35... Nf4+ {[%clk 0:01:01.4]} 36. Kh1 {[%clk
0:01:11.4]} 36... Rc8 {[%clk 0:01:00.6]} 37. Qxc8 {[%clk 0:01:06]} 1-0

[Event "Early-Titled-Tuesday-Blitz-April-02-2024"]
[Site "Chess.com"]
[Date "2024.04.02"]
[Round "10"]
[White "teresin05"]
[Black "Predo63"]
[Result "0-1"]
[WhiteElo "2276"]
[BlackElo "2532"]
[TimeControl "180+1"]
[EndTime "9:54:41 PDT"]
[Termination "Predo63 won by resignation"]

1. e4 {[%clk 0:02:58.2]} 1... c6 {[%clk 0:02:59.8]} 2. d4 {[%clk 0:02:56.7]}
2... d5 {[%clk 0:03:00.7]} 3. Nc3 {[%clk 0:02:54.1]} 3... dxe4 {[%clk
0:03:00.6]} 4. Nxe4 {[%clk 0:02:55]} 4... Bf5 {[%clk 0:03:00.9]} 5. Ng3 {[%clk
0:02:53]} 5... Bg6 {[%clk 0:03:01.1]} 6. h4 {[%clk 0:02:50]} 6... h6 {[%clk
0:03:01.3]} 7. Nf3 {[%clk 0:02:48.3]} 7... Nd7 {[%clk 0:03:00.9]} 8. Bd3 {[%clk
0:02:46.2]} 8... Bxd3 {[%clk 0:02:59.7]} 9. Qxd3 {[%clk 0:02:47.1]} 9... Ngf6
{[%clk 0:03:00]} 10. Bd2 {[%clk 0:02:46]} 10... e6 {[%clk 0:03:00.1]} 11. O-O-O
{[%clk 0:02:46.4]} 11... Bd6 {[%clk 0:03:00.7]} 12. Ne4 {[%clk 0:02:45.7]} 12...
Nxe4 {[%clk 0:03:00.3]} 13. Qxe4 {[%clk 0:02:46.6]} 13... Qe7 {[%clk 0:03:00.7]}
14. Kb1 {[%clk 0:02:44.9]} 14... O-O-O {[%clk 0:02:59.4]} 15. c4 {[%clk
0:02:44.7]} 15... Rhe8 {[%clk 0:02:59.3]} 16. Bc3 {[%clk 0:02:44.4]} 16... Bb4
{[%clk 0:02:59.4]} 17. Bxb4 {[%clk 0:02:41]} 17... Qxb4 {[%clk 0:02:58.9]} 18.
b3 {[%clk 0:02:39.3]} 18... a5 {[%clk 0:02:58.3]} 19. Rhe1 {[%clk 0:02:35.8]}
19... a4 {[%clk 0:02:58]} 20. Kb2 {[%clk 0:02:34.9]} 20... axb3 {[%clk
0:02:55.6]} 21. axb3 {[%clk 0:02:35.8]} 21... Nb6 {[%clk 0:02:55.2]} 22. Qd3
{[%clk 0:02:25.1]} 22... c5 {[%clk 0:02:35.8]} 23. Kc2 {[%clk 0:02:13.9]} 23...
cxd4 {[%clk 0:02:30.2]} 24. Nxd4 {[%clk 0:02:13.6]} 24... e5 {[%clk 0:02:29.4]}
25. Qf5+ {[%clk 0:02:13.1]} 25... Kb8 {[%clk 0:02:24.7]} 26. Rxe5 {[%clk
0:02:12.7]} 26... Nxc4 {[%clk 0:02:21.7]} 27. Rxe8 {[%clk 0:01:56.9]} 27... Rxe8
{[%clk 0:02:19.3]} 28. bxc4 {[%clk 0:01:49.9]} 28... Qxc4+ {[%clk 0:02:17.2]}
29. Kb2 {[%clk 0:01:49]} 29... Qb4+ {[%clk 0:02:17.4]} 30. Kc2 {[%clk
0:01:20.5]} 30... Qc4+ {[%clk 0:02:01.5]} 31. Kb2 {[%clk 0:01:11.7]} 31... Qb4+
{[%clk 0:02:01.7]} 32. Kc1 {[%clk 0:00:58]} 32... Rc8+ {[%clk 0:01:56.6]} 33.
Nc2 {[%clk 0:00:56.8]} 33... Qa3+ {[%clk 0:01:47]} 34. Kd2 {[%clk 0:00:56.3]}
34... Qc3+ {[%clk 0:01:46]} 35. Kc1 {[%clk 0:00:53.6]} 35... Qa1+ {[%clk
0:01:41.8]} 36. Kd2 {[%clk 0:00:53.5]} 36... Rd8+ {[%clk 0:01:41.1]} 37. Ke3
{[%clk 0:00:38.3]} 37... Qxd1 {[%clk 0:01:39.2]} 38. Qe5+ {[%clk 0:00:32.8]}
38... Qd6 {[%clk 0:01:37.7]} 39. Qxg7 {[%clk 0:00:31.6]} 39... Qd3+ {[%clk
0:01:36.1]} 40. Kf4 {[%clk 0:00:30.9]} 40... Qxc2 {[%clk 0:01:36.1]} 41. Qe5+
{[%clk 0:00:30.8]} 41... Qc7 {[%clk 0:01:33.7]} 0-1

[Event "Early-Titled-Tuesday-Blitz-April-02-2024"]
[Site "Chess.com"]
[Date "2024.04.02"]
[Round "10"]
[White "GoValya"]
[Black "diamonds13"]
[Result "1/2-1/2"]
[WhiteElo "2233"]
[BlackElo "2340"]
[TimeControl "180+1"]
[EndTime "9:54:41 PDT"]
[Termination "Game drawn by repetition"]

1. d4 {[%clk 0:03:00.9]} 1... Nf6 {[%clk 0:02:59.2]} 2. c4 {[%clk 0:03:00.9]}
2... e6 {[%clk 0:02:57.5]} 3. Nf3 {[%clk 0:03:00.5]} 3... b6 {[%clk 0:02:56.6]}
4. a3 {[%clk 0:02:59.2]} 4... Bb7 {[%clk 0:02:56.1]} 5. Nc3 {[%clk 0:02:59.3]}
5... d5 {[%clk 0:02:56.1]} 6. Qc2 {[%clk 0:02:59.2]} 6... dxc4 {[%clk 0:02:54]}
7. e3 {[%clk 0:02:59.3]} 7... Nbd7 {[%clk 0:02:53.7]} 8. Bxc4 {[%clk 0:02:58.6]}
8... a6 {[%clk 0:02:53.8]} 9. Be2 {[%clk 0:02:57.5]} 9... c5 {[%clk 0:02:53.7]}
10. O-O {[%clk 0:02:56.2]} 10... Be7 {[%clk 0:02:53.1]} 11. Rd1 {[%clk
0:02:54.1]} 11... Qc7 {[%clk 0:02:52.6]} 12. b3 {[%clk 0:02:19.7]} 12... cxd4
{[%clk 0:02:51.9]} 13. exd4 {[%clk 0:02:03.1]} 13... Rc8 {[%clk 0:02:51.7]} 14.
Bb2 {[%clk 0:01:57.3]} 14... Be4 {[%clk 0:02:49.1]} 15. Qd2 {[%clk 0:01:54.6]}
15... O-O {[%clk 0:02:48.7]} 16. Rac1 {[%clk 0:01:53.8]} 16... Qb7 {[%clk
0:02:48.4]} 17. Nxe4 {[%clk 0:01:30.9]} 17... Nxe4 {[%clk 0:02:48.4]} 18. Qd3
{[%clk 0:01:25.5]} 18... Ndf6 {[%clk 0:02:48.1]} 19. Qxa6 {[%clk 0:01:23.3]}
19... Qxa6 {[%clk 0:02:44.4]} 20. Bxa6 {[%clk 0:01:24.2]} 20... Ra8 {[%clk
0:02:44.2]} 21. Bb7 {[%clk 0:01:20.4]} 21... Ra7 {[%clk 0:02:40.4]} 22. Bxe4
{[%clk 0:01:16.3]} 22... Nxe4 {[%clk 0:02:40.7]} 23. a4 {[%clk 0:01:14.7]} 23...
Bf6 {[%clk 0:02:39.5]} 24. Ne5 {[%clk 0:01:07.1]} 24... Bxe5 {[%clk 0:02:37.4]}
25. dxe5 {[%clk 0:01:07.3]} 25... Nc5 {[%clk 0:02:33]} 26. Ba3 {[%clk 0:01:02]}
26... Nxb3 {[%clk 0:02:31.7]} 27. Bxf8 {[%clk 0:01:00.8]} 27... Nxc1 {[%clk
0:02:30.1]} 28. Rd8 {[%clk 0:00:56.8]} 28... f6 {[%clk 0:02:20.8]} 29. exf6
{[%clk 0:00:44.5]} 29... gxf6 {[%clk 0:02:20]} 30. Ba3+ {[%clk 0:00:42.9]} 30...
Kf7 {[%clk 0:02:20]} 31. Bxc1 {[%clk 0:00:40.4]} 31... Rxa4 {[%clk 0:02:20.7]}
32. g3 {[%clk 0:00:38.6]} 32... Ra1 {[%clk 0:02:20.5]} 33. Rc8 {[%clk
0:00:38.8]} 33... b5 {[%clk 0:02:18.4]} 34. Kg2 {[%clk 0:00:39]} 34... e5 {[%clk
0:02:17.4]} 35. Be3 {[%clk 0:00:36.7]} 35... Rb1 {[%clk 0:02:16.4]} 36. Rb8
{[%clk 0:00:36.7]} 36... Ke6 {[%clk 0:02:15.8]} 37. Rb6+ {[%clk 0:00:35.3]}
37... Kd5 {[%clk 0:02:14.4]} 38. Rxf6 {[%clk 0:00:32.3]} 38... b4 {[%clk
0:02:14.7]} 39. Rb6 {[%clk 0:00:28]} 39... b3 {[%clk 0:02:15]} 40. h4 {[%clk
0:00:19.6]} 40... Ke4 {[%clk 0:02:14.2]} 41. Bd2 {[%clk 0:00:19.5]} 41... Kd3
{[%clk 0:02:13.5]} 42. Be3 {[%clk 0:00:19.5]} 42... b2 {[%clk 0:02:12]} 43. Rb7
{[%clk 0:00:18.6]} 43... Kc3 {[%clk 0:02:10.3]} 44. Rc7+ {[%clk 0:00:18.8]}
44... Kb3 {[%clk 0:02:10.2]} 45. Rb7+ {[%clk 0:00:19.2]} 45... Kc2 {[%clk
0:02:10.3]} 46. Rc7+ {[%clk 0:00:19.5]} 46... Kd3 {[%clk 0:02:06.9]} 47. Rb7
{[%clk 0:00:19.6]} 47... Kc2 {[%clk 0:02:06.8]} 48. Rc7+ {[%clk 0:00:18.9]}
48... Kd3 {[%clk 0:02:07]} 49. Rb7 {[%clk 0:00:18.9]} 1/2-1/2

[Event "Early-Titled-Tuesday-Blitz-April-02-2024"]
[Site "Chess.com"]
[Date "2024.04.02"]
[Round "10"]
[White "Ordekalog"]
[Black "DvaHrasta"]
[Result "1-0"]
[WhiteElo "2622"]
[BlackElo "2533"]
[TimeControl "180+1"]
[EndTime "9:54:54 PDT"]
[Termination "Ordekalog won on time"]

1. e4 {[%clk 0:03:00.9]} 1... c6 {[%clk 0:02:59.6]} 2. d4 {[%clk 0:03:00.3]}
2... d5 {[%clk 0:02:59.7]} 3. Nd2 {[%clk 0:02:59.6]} 3... dxe4 {[%clk
0:02:59.6]} 4. Nxe4 {[%clk 0:02:59.6]} 4... Nf6 {[%clk 0:03:00.3]} 5. Qd3 {[%clk
0:02:54.6]} 5... Nxe4 {[%clk 0:02:56.9]} 6. Qxe4 {[%clk 0:02:55.5]} 6... Nd7
{[%clk 0:02:56.6]} 7. Nf3 {[%clk 0:02:54.9]} 7... Nf6 {[%clk 0:02:56.7]} 8. Qd3
{[%clk 0:02:54.2]} 8... Qa5+ {[%clk 0:02:48]} 9. Bd2 {[%clk 0:02:52]} 9... Qf5
{[%clk 0:02:47]} 10. Qb3 {[%clk 0:02:44.1]} 10... Qd5 {[%clk 0:02:37.8]} 11. Bc4
{[%clk 0:02:39.9]} 11... Qe4+ {[%clk 0:02:37.4]} 12. Kf1 {[%clk 0:02:17.2]}
12... e6 {[%clk 0:02:10.8]} 13. Re1 {[%clk 0:02:15.4]} 13... Qg6 {[%clk
0:02:01]} 14. Ne5 {[%clk 0:02:13.4]} 14... Qh5 {[%clk 0:01:44.8]} 15. h4 {[%clk
0:01:58.6]} 15... Nd7 {[%clk 0:01:14.7]} 16. g4 {[%clk 0:01:38.1]} 16... Nxe5
{[%clk 0:01:09.8]} 17. gxh5 {[%clk 0:01:37.5]} 17... Nxc4 {[%clk 0:01:01.3]} 18.
Qxc4 {[%clk 0:01:37.1]} 18... h6 {[%clk 0:01:01.4]} 19. Bb4 {[%clk 0:01:30.1]}
19... Bd7 {[%clk 0:00:37.4]} 20. Bxf8 {[%clk 0:01:28]} 20... Rxf8 {[%clk
0:00:34.6]} 21. Rg1 {[%clk 0:01:27.4]} 21... Rg8 {[%clk 0:00:32.8]} 22. Qa4
{[%clk 0:01:20.6]} 22... a6 {[%clk 0:00:28.4]} 23. Qa5 {[%clk 0:01:20.5]} 23...
Rc8 {[%clk 0:00:06.6]} 24. b4 {[%clk 0:01:18.8]} 24... Ke7 {[%clk 0:00:05.7]}
25. Qc5+ {[%clk 0:01:17.8]} 25... Ke8 {[%clk 0:00:02.9]} 26. f4 {[%clk
0:01:16.5]} 1-0

[Event "Early-Titled-Tuesday-Blitz-April-02-2024"]
[Site "Chess.com"]
[Date "2024.04.02"]
[Round "10"]
[White "MikeWizard"]
[Black "JJDAREK"]
[Result "0-1"]
[WhiteElo "2185"]
[BlackElo "2339"]
[TimeControl "180+1"]
[EndTime "9:54:58 PDT"]
[Termination "JJDAREK won by resignation"]

1. d4 {[%clk 0:03:00.9]} 1... d6 {[%clk 0:03:00.2]} 2. Nf3 {[%clk 0:02:53.9]}
2... g6 {[%clk 0:02:59.8]} 3. g3 {[%clk 0:02:53.2]} 3... Bg7 {[%clk 0:02:59.9]}
4. Bg2 {[%clk 0:02:53.2]} 4... Nf6 {[%clk 0:03:00.2]} 5. O-O {[%clk 0:02:52.8]}
5... O-O {[%clk 0:03:00.8]} 6. c4 {[%clk 0:02:52.7]} 6... c6 {[%clk 0:03:00.7]}
7. Nc3 {[%clk 0:02:52.3]} 7... a6 {[%clk 0:03:01.2]} 8. a4 {[%clk 0:02:49.4]}
8... a5 {[%clk 0:03:00.7]} 9. e4 {[%clk 0:02:48.2]} 9... Na6 {[%clk 0:03:00.6]}
10. Bf4 {[%clk 0:02:39.1]} 10... Bg4 {[%clk 0:02:38.3]} 11. h3 {[%clk
0:02:36.3]} 11... Bxf3 {[%clk 0:02:38.6]} 12. Bxf3 {[%clk 0:02:36.3]} 12... Nd7
{[%clk 0:02:38.8]} 13. Qd2 {[%clk 0:02:26.9]} 13... e5 {[%clk 0:02:34.9]} 14.
dxe5 {[%clk 0:02:25.2]} 14... dxe5 {[%clk 0:02:29]} 15. Bg5 {[%clk 0:02:20.1]}
15... Bf6 {[%clk 0:02:19.9]} 16. Bxf6 {[%clk 0:02:16.6]} 16... Nxf6 {[%clk
0:02:20.8]} 17. Rfd1 {[%clk 0:02:13.7]} 17... Qxd2 {[%clk 0:02:17.9]} 18. Rxd2
{[%clk 0:02:13.2]} 18... Nc5 {[%clk 0:02:15.2]} 19. Rd6 {[%clk 0:02:10]} 19...
Kg7 {[%clk 0:02:11.2]} 20. Rad1 {[%clk 0:02:04.8]} 20... Rfe8 {[%clk 0:02:11]}
21. Kg2 {[%clk 0:02:03.6]} 21... Re6 {[%clk 0:02:07.6]} 22. Rd8 {[%clk
0:01:59.3]} 22... Re8 {[%clk 0:02:02]} 23. Rxa8 {[%clk 0:01:55.6]} 23... Rxa8
{[%clk 0:02:01.3]} 24. g4 {[%clk 0:01:52.1]} 24... Kf8 {[%clk 0:01:50.1]} 25. g5
{[%clk 0:01:51.2]} 25... Nfd7 {[%clk 0:01:50.1]} 26. Bg4 {[%clk 0:01:49.7]}
26... Nb6 {[%clk 0:01:44.6]} 27. Be2 {[%clk 0:01:46.3]} 27... Ke7 {[%clk
0:01:41.7]} 28. Ra1 {[%clk 0:01:19.2]} 28... Rd8 {[%clk 0:01:38.4]} 29. Rd1
{[%clk 0:01:18.6]} 29... Ncxa4 {[%clk 0:01:28.9]} 30. Rxd8 {[%clk 0:01:13.5]}
30... Kxd8 {[%clk 0:01:29.8]} 31. Nd1 {[%clk 0:01:05.4]} 31... Nc5 {[%clk
0:01:26.9]} 32. f3 {[%clk 0:01:02.5]} 32... Ne6 {[%clk 0:01:24.5]} 33. Kf2
{[%clk 0:00:56.9]} 33... Nxg5 {[%clk 0:01:23.7]} 34. h4 {[%clk 0:00:54.8]} 34...
Ne6 {[%clk 0:01:23.9]} 35. Ke3 {[%clk 0:00:54.2]} 35... Nd4 {[%clk 0:01:19.7]}
36. f4 {[%clk 0:00:51.6]} 36... Nxe2 {[%clk 0:01:18.6]} 37. Kxe2 {[%clk
0:00:51.7]} 37... exf4 {[%clk 0:01:15.2]} 38. Kf3 {[%clk 0:00:50.8]} 38... Nxc4
{[%clk 0:01:15]} 39. Kxf4 {[%clk 0:00:51.2]} 39... Ke7 {[%clk 0:01:15.3]} 40.
Kg5 {[%clk 0:00:50.6]} 40... h5 {[%clk 0:01:14.4]} 41. Kf4 {[%clk 0:00:49.1]}
41... b5 {[%clk 0:01:14.5]} 42. b3 {[%clk 0:00:48.2]} 42... Nd2 {[%clk
0:01:11.3]} 0-1